Workbook

Sheet ResourceLevelConfig
A1: ID | B1: Level | C1: value1 | D1: value2 | E1: value3 | F1: value4 | G1: value5 | H1: value6
A2: int | B2: int | C2: float | D2: float | E2: float | F2: float | G2: float | H2: float
B4: 等级 | C4: 1001 铜钱 | D4: 1002 银锭 | E4: 1003 修为 | F4: 1004 金锭 | G4: 1005 功法灵气 | H4: 1006 法宝灵韵 | I4: 1.02
A5: 1 | B5: 1 | C5: 300 | D5: 100 | E5: 100 | F5: 100 | G5: 20 | H5: 10
A6: 2 | B6: 2 | C6: =ROUND(MAX(C5+C$5*0.1,C5*$I$4),0) -> 330 | D6: 110 | E6: 110 | F6: 110 | G6: 22 | H6: 11
A7: 3 | B7: 3 | C7: =ROUND(MAX(C6+C$5*0.1,C6*$I$4),0) -> 360 | D7: 120 | E7: 120 | F7: 120 | G7: =ROUND(MAX(G6+G$5*0.1,G6*$I$4),0) -> 24 | H7: 12
A8: 4 | B8: 4 | C8: 390 | D8: 130 | E8: 130 | F8: 130 | G8: 26 | H8: 13
A9: 5 | B9: 5 | C9: 420 | D9: 140 | E9: 140 | F9: 140 | G9: 28 | H9: 14
A10: 6 | B10: 6 | C10: 450 | D10: 150 | E10: 150 | F10: 150 | G10: 30 | H10: 15
A11: 7 | B11: 7 | C11: 480 | D11: 160 | E11: 160 | F11: 160 | G11: 32 | H11: 16
A12: 8 | B12: 8 | C12: 510 | D12: 170 | E12: 170 | F12: 170 | G12: 34 | H12: 17
A13: 9 | B13: 9 | C13: 540 | D13: 180 | E13: 180 | F13: 180 | G13: 36 | H13: 18
A14: 10 | B14: 10 | C14: 570 | D14: 190 | E14: 190 | F14: 190 | G14: 38 | H14: 19
A15: 11 | B15: 11 | C15: 600 | D15: 200 | E15: 200 | F15: 200 | G15: 40 | H15: 20
A16: 12 | B16: 12 | C16: 630 | D16: 210 | E16: 210 | F16: 210 | G16: 42 | H16: 21
A17: 13 | B17: 13 | C17: 660 | D17: 220 | E17: 220 | F17: 220 | G17: 44 | H17: 22
A18: 14 | B18: 14 | C18: 690 | D18: 230 | E18: 230 | F18: 230 | G18: 46 | H18: 23
A19: 15 | B19: 15 | C19: 720 | D19: 240 | E19: 240 | F19: 240 | G19: 48 | H19: 24
A20: 16 | B20: 16 | C20: 750 | D20: 250 | E20: 250 | F20: 250 | G20: 50 | H20: 25
A21: 17 | B21: 17 | C21: 780 | D21: 260 | E21: 260 | F21: 260 | G21: 52 | H21: 26
A22: 18 | B22: 18 | C22: 810 | D22: 270 | E22: 270 | F22: 270 | G22: 54 | H22: 27
A23: 19 | B23: 19 | C23: 840 | D23: 280 | E23: 280 | F23: 280 | G23: 56 | H23: 28
A24: 20 | B24: 20 | C24: 870 | D24: 290 | E24: 290 | F24: 290 | G24: 58 | H24: 29
A25: 21 | B25: 21 | C25: 900 | D25: 300 | E25: 300 | F25: 300 | G25: 60 | H25: 30
A26: 22 | B26: 22 | C26: 930 | D26: 310 | E26: 310 | F26: 310 | G26: 62 | H26: 31
A27: 23 | B27: 23 | C27: 960 | D27: 320 | E27: 320 | F27: 320 | G27: 64 | H27: 32
A28: 24 | B28: 24 | C28: 990 | D28: 330 | E28: 330 | F28: 330 | G28: 66 | H28: 33
A29: 25 | B29: 25 | C29: 1020 | D29: 340 | E29: 340 | F29: 340 | G29: 68 | H29: 34
A30: 26 | B30: 26 | C30: 1050 | D30: 350 | E30: 350 | F30: 350 | G30: 70 | H30: 35
A31: 27 | B31: 27 | C31: 1080 | D31: 360 | E31: 360 | F31: 360 | G31: 72 | H31: 36
A32: 28 | B32: 28 | C32: 1110 | D32: 370 | E32: 370 | F32: 370 | G32: 74 | H32: 37
A33: 29 | B33: 29 | C33: 1140 | D33: 380 | E33: 380 | F33: 380 | G33: 76 | H33: 38
A34: 30 | B34: 30 | C34: 1170 | D34: 390 | E34: 390 | F34: 390 | G34: 78 | H34: 39
A35: 31 | B35: 31 | C35: 1200 | D35: 400 | E35: 400 | F35: 400 | G35: 80 | H35: 40
A36: 32 | B36: 32 | C36: 1230 | D36: 410 | E36: 410 | F36: 410 | G36: 82 | H36: 41
A37: 33 | B37: 33 | C37: 1260 | D37: 420 | E37: 420 | F37: 420 | G37: 84 | H37: 42
A38: 34 | B38: 34 | C38: 1290 | D38: 430 | E38: 430 | F38: 430 | G38: 86 | H38: 43
A39: 35 | B39: 35 | C39: 1320 | D39: 440 | E39: 440 | F39: 440 | G39: 88 | H39: 44
A40: 36 | B40: 36 | C40: 1350 | D40: 450 | E40: 450 | F40: 450 | G40: 90 | H40: 45
A41: 37 | B41: 37 | C41: 1380 | D41: 460 | E41: 460 | F41: 460 | G41: 92 | H41: 46
A42: 38 | B42: 38 | C42: 1410 | D42: 470 | E42: 470 | F42: 470 | G42: 94 | H42: 47
A43: 39 | B43: 39 | C43: 1440 | D43: 480 | E43: 480 | F43: 480 | G43: 96 | H43: 48
A44: 40 | B44: 40 | C44: 1470 | D44: 490 | E44: 490 | F44: 490 | G44: 98 | H44: 49
A45: 41 | B45: 41 | C45: 1500 | D45: 500 | E45: 500 | F45: 500 | G45: 100 | H45: 50
A46: 42 | B46: 42 | C46: 1530 | D46: 510 | E46: 510 | F46: 510 | G46: 102 | H46: 51
A47: 43 | B47: 43 | C47: 1561 | D47: 520 | E47: 520 | F47: 520 | G47: 104 | H47: 52
A48: 44 | B48: 44 | C48: 1592 | D48: 530 | E48: 530 | F48: 530 | G48: 106 | H48: 53
A49: 45 | B49: 45 | C49: 1624 | D49: 541 | E49: 541 | F49: 541 | G49: 108 | H49: 54
A50: 46 | B50: 46 | C50: 1656 | D50: 552 | E50: 552 | F50: 552 | G50: 110 | H50: 55
A51: 47 | B51: 47 | C51: 1689 | D51: 563 | E51: 563 | F51: 563 | G51: 112 | H51: 56
A52: 48 | B52: 48 | C52: 1723 | D52: 574 | E52: 574 | F52: 574 | G52: 114 | H52: 57
A53: 49 | B53: 49 | C53: 1757 | D53: 585 | E53: 585 | F53: 585 | G53: 116 | H53: 58
A54: 50 | B54: 50 | C54: 1792 | D54: 597 | E54: 597 | F54: 597 | G54: 118 | H54: 59
A55: 51 | B55: 51 | C55: 1828 | D55: 609 | E55: 609 | F55: 609 | G55: 120 | H55: 60
A56: 52 | B56: 52 | C56: 1865 | D56: 621 | E56: 621 | F56: 621 | G56: 122 | H56: 61
A57: 53 | B57: 53 | C57: 1902 | D57: 633 | E57: 633 | F57: 633 | G57: 124 | H57: 62
A58: 54 | B58: 54 | C58: 1940 | D58: 646 | E58: 646 | F58: 646 | G58: 126 | H58: 63
A59: 55 | B59: 55 | C59: 1979 | D59: 659 | E59: 659 | F59: 659 | G59: 129 | H59: 64
A60: 56 | B60: 56 | C60: 2019 | D60: 672 | E60: 672 | F60: 672 | G60: 132 | H60: 65
A61: 57 | B61: 57 | C61: 2059 | D61: 685 | E61: 685 | F61: 685 | G61: 135 | H61: 66
A62: 58 | B62: 58 | C62: 2100 | D62: 699 | E62: 699 | F62: 699 | G62: 138 | H62: 67
A63: 59 | B63: 59 | C63: 2142 | D63: 713 | E63: 713 | F63: 713 | G63: 141 | H63: 68
A64: 60 | B64: 60 | C64: 2185 | D64: 727 | E64: 727 | F64: 727 | G64: 144 | H64: 69
A65: 61 | B65: 61 | C65: 2229 | D65: 742 | E65: 742 | F65: 742 | G65: 147 | H65: 70
A66: 62 | B66: 62 | C66: 2274 | D66: 757 | E66: 757 | F66: 757 | G66: 150 | H66: 71
A67: 63 | B67: 63 | C67: 2319 | D67: 772 | E67: 772 | F67: 772 | G67: 153 | H67: 72
A68: 64 | B68: 64 | C68: 2365 | D68: 787 | E68: 787 | F68: 787 | G68: 156 | H68: 73
A69: 65 | B69: 65 | C69: 2412 | D69: 803 | E69: 803 | F69: 803 | G69: 159 | H69: 74
A70: 66 | B70: 66 | C70: 2460 | D70: 819 | E70: 819 | F70: =ROUND(MAX(F69+F$5*0.1,F69*$I$4),0) -> 819 | G70: 162 | H70: 75
A71: 67 | B71: 67 | C71: =ROUND(MAX(C70+C$5*0.1,C70*$I$4),0) -> 2509 | D71: 835 | E71: 835 | F71: 835 | G71: =ROUND(MAX(G70+G$5*0.1,G70*$I$4),0) -> 165 | H71: 77
A72: 68 | B72: 68 | C72: 2559 | D72: 852 | E72: 852 | F72: 852 | G72: 168 | H72: 79
A73: 69 | B73: 69 | C73: 2610 | D73: 869 | E73: 869 | F73: 869 | G73: 171 | H73: 81
A74: 70 | B74: 70 | C74: 2662 | D74: 886 | E74: 886 | F74: 886 | G74: 174 | H74: 83
A75: 71 | B75: 71 | C75: 2715 | D75: 904 | E75: 904 | F75: 904 | G75: 177 | H75: 85
A76: 72 | B76: 72 | C76: 2769 | D76: 922 | E76: 922 | F76: 922 | G76: 181 | H76: 87
A77: 73 | B77: 73 | C77: 2824 | D77: 940 | E77: 940 | F77: 940 | G77: 185 | H77: 89
A78: 74 | B78: 74 | C78: 2880 | D78: 959 | E78: 959 | F78: 959 | G78: 189 | H78: 91
A79: 75 | B79: 75 | C79: 2938 | D79: 978 | E79: 978 | F79: 978 | G79: 193 | H79: 93
A80: 76 | B80: 76 | C80: 2997 | D80: 998 | E80: 998 | F80: 998 | G80: 197 | H80: 95
A81: 77 | B81: 77 | C81: 3057 | D81: 1018 | E81: 1018 | F81: 1018 | G81: 201 | H81: 97
A82: 78 | B82: 78 | C82: 3118 | D82: 1038 | E82: 1038 | F82: 1038 | G82: 205 | H82: 99
A83: 79 | B83: 79 | C83: 3180 | D83: 1059 | E83: 1059 | F83: 1059 | G83: 209 | H83: 101
A84: 80 | B84: 80 | C84: 3244 | D84: 1080 | E84: 1080 | F84: 1080 | G84: 213 | H84: 103
A85: 81 | B85: 81 | C85: 3309 | D85: 1102 | E85: 1102 | F85: 1102 | G85: 217 | H85: 105
A86: 82 | B86: 82 | C86: 3375 | D86: 1124 | E86: 1124 | F86: 1124 | G86: 221 | H86: 107
A87: 83 | B87: 83 | C87: 3443 | D87: 1146 | E87: 1146 | F87: 1146 | G87: 225 | H87: 109
A88: 84 | B88: 84 | C88: 3512 | D88: 1169 | E88: 1169 | F88: 1169 | G88: 230 | H88: 111
A89: 85 | B89: 85 | C89: 3582 | D89: 1192 | E89: 1192 | F89: 1192 | G89: 235 | H89: 113
A90: 86 | B90: 86 | C90: 3654 | D90: 1216 | E90: 1216 | F90: 1216 | G90: 240 | H90: 115
A91: 87 | B91: 87 | C91: 3727 | D91: 1240 | E91: 1240 | F91: 1240 | G91: 245 | H91: 117
A92: 88 | B92: 88 | C92: 3802 | D92: 1265 | E92: 1265 | F92: 1265 | G92: 250 | H92: 119
A93: 89 | B93: 89 | C93: 3878 | D93: 1290 | E93: 1290 | F93: 1290 | G93: 255 | H93: 121
A94: 90 | B94: 90 | C94: 3956 | D94: 1316 | E94: 1316 | F94: 1316 | G94: 260 | H94: 123
A95: 91 | B95: 91 | C95: 4035 | D95: 1342 | E95: 1342 | F95: 1342 | G95: 265 | H95: 125
A96: 92 | B96: 92 | C96: 4116 | D96: 1369 | E96: 1369 | F96: 1369 | G96: 270 | H96: 128
A97: 93 | B97: 93 | C97: 4198 | D97: 1396 | E97: 1396 | F97: 1396 | G97: 275 | H97: 131
A98: 94 | B98: 94 | C98: 4282 | D98: 1424 | E98: 1424 | F98: 1424 | G98: 281 | H98: 134
A99: 95 | B99: 95 | C99: 4368 | D99: 1452 | E99: 1452 | F99: 1452 | G99: 287 | H99: 137
A100: 96 | B100: 96 | C100: 4455 | D100: 1481 | E100: 1481 | F100: 1481 | G100: 293 | H100: 140
A101: 97 | B101: 97 | C101: 4544 | D101: 1511 | E101: 1511 | F101: 1511 | G101: 299 | H101: 143
A102: 98 | B102: 98 | C102: 4635 | D102: 1541 | E102: 1541 | F102: 1541 | G102: 305 | H102: 146
A103: 99 | B103: 99 | C103: 4728 | D103: 1572 | E103: 1572 | F103: 1572 | G103: 311 | H103: 149
A104: 100 | B104: 100 | C104: 4823 | D104: 1603 | E104: 1603 | F104: 1603 | G104: 317 | H104: 152
A105: 101 | B105: 101 | C105: 4919 | D105: 1635 | E105: 1635 | F105: 1635 | G105: 323 | H105: 155
A106: 102 | B106: 102 | C106: 5017 | D106: 1668 | E106: 1668 | F106: 1668 | G106: 329 | H106: 158
A107: 103 | B107: 103 | C107: 5117 | D107: 1701 | E107: 1701 | F107: 1701 | G107: 336 | H107: 161
A108: 104 | B108: 104 | C108: 5219 | D108: 1735 | E108: 1735 | F108: 1735 | G108: 343 | H108: 164
A109: 105 | B109: 105 | C109: 5323 | D109: 1770 | E109: 1770 | F109: 1770 | G109: 350 | H109: 167
A110: 106 | B110: 106 | C110: 5429 | D110: 1805 | E110: 1805 | F110: 1805 | G110: 357 | H110: 170
A111: 107 | B111: 107 | C111: 5538 | D111: 1841 | E111: 1841 | F111: 1841 | G111: 364 | H111: 173
A112: 108 | B112: 108 | C112: 5649 | D112: 1878 | E112: 1878 | F112: 1878 | G112: 371 | H112: 176
A113: 109 | B113: 109 | C113: 5762 | D113: 1916 | E113: 1916 | F113: 1916 | G113: 378 | H113: 180
A114: 110 | B114: 110 | C114: 5877 | D114: 1954 | E114: 1954 | F114: 1954 | G114: 386 | H114: 184
A115: 111 | B115: 111 | C115: 5995 | D115: 1993 | E115: 1993 | F115: 1993 | G115: 394 | H115: 188
A116: 112 | B116: 112 | C116: 6115 | D116: 2033 | E116: 2033 | F116: 2033 | G116: 402 | H116: 192
A117: 113 | B117: 113 | C117: 6237 | D117: 2074 | E117: 2074 | F117: 2074 | G117: 410 | H117: 196
A118: 114 | B118: 114 | C118: 6362 | D118: 2115 | E118: 2115 | F118: 2115 | G118: 418 | H118: 200
A119: 115 | B119: 115 | C119: 6489 | D119: 2157 | E119: 2157 | F119: 2157 | G119: 426 | H119: 204
A120: 116 | B120: 116 | C120: 6619 | D120: 2200 | E120: 2200 | F120: 2200 | G120: 435 | H120: 208
A121: 117 | B121: 117 | C121: 6751 | D121: 2244 | E121: 2244 | F121: 2244 | G121: 444 | H121: 212
A122: 118 | B122: 118 | C122: 6886 | D122: 2289 | E122: 2289 | F122: 2289 | G122: 453 | H122: 216
A123: 119 | B123: 119 | C123: 7024 | D123: 2335 | E123: 2335 | F123: 2335 | G123: 462 | H123: 220
A124: 120 | B124: 120 | C124: 7164 | D124: 2382 | E124: 2382 | F124: 2382 | G124: 471 | H124: 224
A125: 121 | B125: 121 | C125: 7307 | D125: 2430 | E125: 2430 | F125: 2430 | G125: 480 | H125: 228
A126: 122 | B126: 122 | C126: 7453 | D126: 2479 | E126: 2479 | F126: 2479 | G126: 490 | H126: 233
A127: 123 | B127: 123 | C127: 7602 | D127: 2529 | E127: 2529 | F127: 2529 | G127: 500 | H127: 238
A128: 124 | B128: 124 | C128: 7754 | D128: 2580 | E128: 2580 | F128: 2580 | G128: 510 | H128: 243
A129: 125 | B129: 125 | C129: 7909 | D129: 2632 | E129: 2632 | F129: 2632 | G129: 520 | H129: 248
A130: 126 | B130: 126 | C130: 8067 | D130: 2685 | E130: 2685 | F130: 2685 | G130: 530 | H130: 253
A131: 127 | B131: 127 | C131: 8228 | D131: 2739 | E131: 2739 | F131: 2739 | G131: 541 | H131: 258
A132: 128 | B132: 128 | C132: 8393 | D132: 2794 | E132: 2794 | F132: 2794 | G132: 552 | H132: 263
A133: 129 | B133: 129 | C133: 8561 | D133: 2850 | E133: 2850 | F133: 2850 | G133: 563 | H133: 268
A134: 130 | B134: 130 | C134: 8732 | D134: 2907 | E134: 2907 | F134: =ROUND(MAX(F133+F$5*0.1,F133*$I$4),0) -> 2907 | G134: 574 | H134: 273
A135: 131 | B135: 131 | C135: =ROUND(MAX(C134+C$5*0.1,C134*$I$4),0) -> 8907 | D135: 2965 | E135: 2965 | F135: 2965 | G135: =ROUND(MAX(G134+G$5*0.1,G134*$I$4),0) -> 585 | H135: 278
A136: 132 | B136: 132 | C136: 9085 | D136: 3024 | E136: 3024 | F136: 3024 | G136: 597 | H136: 284
A137: 133 | B137: 133 | C137: 9267 | D137: 3084 | E137: 3084 | F137: 3084 | G137: 609 | H137: 290
A138: 134 | B138: 134 | C138: 9452 | D138: 3146 | E138: 3146 | F138: 3146 | G138: 621 | H138: 296
A139: 135 | B139: 135 | C139: 9641 | D139: 3209 | E139: 3209 | F139: 3209 | G139: 633 | H139: 302
A140: 136 | B140: 136 | C140: 9834 | D140: 3273 | E140: 3273 | F140: 3273 | G140: 646 | H140: 308
A141: 137 | B141: 137 | C141: 10031 | D141: 3338 | E141: 3338 | F141: 3338 | G141: 659 | H141: 314
A142: 138 | B142: 138 | C142: 10232 | D142: 3405 | E142: 3405 | F142: 3405 | G142: 672 | H142: 320
A143: 139 | B143: 139 | C143: 10437 | D143: 3473 | E143: 3473 | F143: 3473 | G143: 685 | H143: 326
A144: 140 | B144: 140 | C144: 10646 | D144: 3542 | E144: 3542 | F144: 3542 | G144: 699 | H144: 333
A145: 141 | B145: 141 | C145: 10859 | D145: 3613 | E145: 3613 | F145: 3613 | G145: 713 | H145: 340
A146: 142 | B146: 142 | C146: 11076 | D146: 3685 | E146: 3685 | F146: 3685 | G146: 727 | H146: 347
A147: 143 | B147: 143 | C147: 11298 | D147: 3759 | E147: 3759 | F147: 3759 | G147: 742 | H147: 354
A148: 144 | B148: 144 | C148: 11524 | D148: 3834 | E148: 3834 | F148: 3834 | G148: 757 | H148: 361
A149: 145 | B149: 145 | C149: 11754 | D149: 3911 | E149: 3911 | F149: 3911 | G149: 772 | H149: 368
A150: 146 | B150: 146 | C150: 11989 | D150: 3989 | E150: 3989 | F150: 3989 | G150: 787 | H150: 375
A151: 147 | B151: 147 | C151: 12229 | D151: 4069 | E151: 4069 | F151: 4069 | G151: 803 | H151: 383
A152: 148 | B152: 148 | C152: 12474 | D152: 4150 | E152: 4150 | F152: 4150 | G152: 819 | H152: 391
A153: 149 | B153: 149 | C153: 12723 | D153: 4233 | E153: 4233 | F153: 4233 | G153: 835 | H153: 399
A154: 150 | B154: 150 | C154: 12977 | D154: 4318 | E154: 4318 | F154: 4318 | G154: 852 | H154: 407
A155: 151 | B155: 151 | C155: 13237 | D155: 4404 | E155: 4404 | F155: 4404 | G155: 869 | H155: 415
A156: 152 | B156: 152 | C156: 13502 | D156: 4492 | E156: 4492 | F156: 4492 | G156: 886 | H156: 423
A157: 153 | B157: 153 | C157: 13772 | D157: 4582 | E157: 4582 | F157: 4582 | G157: 904 | H157: 431
A158: 154 | B158: 154 | C158: 14047 | D158: 4674 | E158: 4674 | F158: 4674 | G158: 922 | H158: 440
A159: 155 | B159: 155 | C159: 14328 | D159: 4767 | E159: 4767 | F159: 4767 | G159: 940 | H159: 449
A160: 156 | B160: 156 | C160: 14615 | D160: 4862 | E160: 4862 | F160: 4862 | G160: 959 | H160: 458
A161: 157 | B161: 157 | C161: 14907 | D161: 4959 | E161: 4959 | F161: 4959 | G161: 978 | H161: 467
A162: 158 | B162: 158 | C162: 15205 | D162: 5058 | E162: 5058 | F162: 5058 | G162: 998 | H162: 476
A163: 159 | B163: 159 | C163: 15509 | D163: 5159 | E163: 5159 | F163: 5159 | G163: 1018 | H163: 486
A164: 160 | B164: 160 | C164: 15819 | D164: 5262 | E164: 5262 | F164: 5262 | G164: 1038 | H164: 496
A165: 161 | B165: 161 | C165: 16135 | D165: 5367 | E165: 5367 | F165: 5367 | G165: 1059 | H165: 506
A166: 162 | B166: 162 | C166: 16458 | D166: 5474 | E166: 5474 | F166: 5474 | G166: 1080 | H166: 516
A167: 163 | B167: 163 | C167: 16787 | D167: 5583 | E167: 5583 | F167: 5583 | G167: 1102 | H167: 526
A168: 164 | B168: 164 | C168: 17123 | D168: 5695 | E168: 5695 | F168: 5695 | G168: 1124 | H168: 537
A169: 165 | B169: 165 | C169: 17465 | D169: 5809 | E169: 5809 | F169: 5809 | G169: 1146 | H169: 548
A170: 166 | B170: 166 | C170: 17814 | D170: 5925 | E170: 5925 | F170: 5925 | G170: 1169 | H170: 559
A171: 167 | B171: 167 | C171: 18170 | D171: 6044 | E171: 6044 | F171: 6044 | G171: 1192 | H171: 570
A172: 168 | B172: 168 | C172: 18533 | D172: 6165 | E172: 6165 | F172: 6165 | G172: 1216 | H172: 581
A173: 169 | B173: 169 | C173: 18904 | D173: 6288 | E173: 6288 | F173: 6288 | G173: 1240 | H173: 593
A174: 170 | B174: 170 | C174: 19282 | D174: 6414 | E174: 6414 | F174: 6414 | G174: 1265 | H174: 605
A175: 171 | B175: 171 | C175: 19668 | D175: 6542 | E175: 6542 | F175: 6542 | G175: 1290 | H175: 617
A176: 172 | B176: 172 | C176: 20061 | D176: 6673 | E176: 6673 | F176: 6673 | G176: 1316 | H176: 629
A177: 173 | B177: 173 | C177: 20462 | D177: 6806 | E177: 6806 | F177: 6806 | G177: 1342 | H177: 642
A178: 174 | B178: 174 | C178: 20871 | D178: 6942 | E178: 6942 | F178: 6942 | G178: 1369 | H178: 655
A179: 175 | B179: 175 | C179: 21288 | D179: 7081 | E179: 7081 | F179: 7081 | G179: 1396 | H179: 668
A180: 176 | B180: 176 | C180: 21714 | D180: 7223 | E180: 7223 | F180: 7223 | G180: 1424 | H180: 681
A181: 177 | B181: 177 | C181: 22148 | D181: 7367 | E181: 7367 | F181: 7367 | G181: 1452 | H181: 695
A182: 178 | B182: 178 | C182: 22591 | D182: 7514 | E182: 7514 | F182: 7514 | G182: 1481 | H182: 709
A183: 179 | B183: 179 | C183: 23043 | D183: 7664 | E183: 7664 | F183: 7664 | G183: 1511 | H183: 723
A184: 180 | B184: 180 | C184: 23504 | D184: 7817 | E184: 7817 | F184: 7817 | G184: 1541 | H184: 737
A185: 181 | B185: 181 | C185: 23974 | D185: 7973 | E185: 7973 | F185: 7973 | G185: 1572 | H185: 752
A186: 182 | B186: 182 | C186: 24453 | D186: 8132 | E186: 8132 | F186: 8132 | G186: 1603 | H186: 767
A187: 183 | B187: 183 | C187: 24942 | D187: 8295 | E187: 8295 | F187: 8295 | G187: 1635 | H187: 782
A188: 184 | B188: 184 | C188: 25441 | D188: 8461 | E188: 8461 | F188: 8461 | G188: 1668 | H188: 798
A189: 185 | B189: 185 | C189: 25950 | D189: 8630 | E189: 8630 | F189: 8630 | G189: 1701 | H189: 814
A190: 186 | B190: 186 | C190: 26469 | D190: 8803 | E190: 8803 | F190: 8803 | G190: 1735 | H190: 830
A191: 187 | B191: 187 | C191: 26998 | D191: 8979 | E191: 8979 | F191: 8979 | G191: 1770 | H191: 847
A192: 188 | B192: 188 | C192: 27538 | D192: 9159 | E192: 9159 | F192: 9159 | G192: 1805 | H192: 864
A193: 189 | B193: 189 | C193: 28089 | D193: 9342 | E193: 9342 | F193: 9342 | G193: 1841 | H193: 881
A194: 190 | B194: 190 | C194: 28651 | D194: 9529 | E194: 9529 | F194: 9529 | G194: 1878 | H194: 899
A195: 191 | B195: 191 | C195: 29224 | D195: 9720 | E195: 9720 | F195: 9720 | G195: 1916 | H195: 917
A196: 192 | B196: 192 | C196: 29808 | D196: 9914 | E196: 9914 | F196: 9914 | G196: 1954 | H196: 935
A197: 193 | B197: 193 | C197: 30404 | D197: 10112 | E197: 10112 | F197: 10112 | G197: 1993 | H197: 954
A198: 194 | B198: 194 | C198: 31012 | D198: 10314 | E198: 10314 | F198: =ROUND(MAX(F197+F$5*0.1,F197*$I$4),0) -> 10314 | G198: 2033 | H198: 973
A199: 195 | B199: 195 | C199: =ROUND(MAX(C198+C$5*0.1,C198*$I$4),0) -> 31632 | D199: 10520 | E199: 10520 | F199: 10520 | G199: =ROUND(MAX(G198+G$5*0.1,G198*$I$4),0) -> 2074 | H199: 992
A200: 196 | B200: 196 | C200: 32265 | D200: 10730 | E200: 10730 | F200: 10730 | G200: 2115 | H200: 1012
A201: 197 | B201: 197 | C201: 32910 | D201: 10945 | E201: 10945 | F201: 10945 | G201: 2157 | H201: 1032
... 103 more rows
